fUSD/lending_fUSD_20241029
["ID","MTS","AMOUNT","RATE_DAILY","PERIOD"]
[340964754,1730169392186,181.48578539,0.00044122,30]
[340964755,1730169397861,517.90080069,0.00044122,30]
[340964756,1730169398078,500.0,0.00044122,30]
[340964757,1730169398402,557.27411557,0.00044122,30]
[340964758,1730169399969,514.02922932,0.00044122,30]
[340964759,1730169400333,998.81339352,0.00044122,30]
[340964760,1730169400925,500.0,0.00044122,30]
[340964761,1730169401249,500.0,0.00044122,30]
[340964762,1730169401538,500.0,0.00044122,30]
[340964763,1730169401819,583.32,0.00044122,30]
[340964764,1730169405233,508.56350796,0.00044122,30]
[340964765,1730169407406,510.71133078,0.00044122,30]
[340964766,1730169410844,512.44726185,0.00044122,30]
[340964767,1730169415806,507.29011182,0.00044122,30]
[340964768,1730169420611,503.70698099,0.00044122,30]
[340964769,1730169421138,500.0,0.00044122,30]
[340964770,1730169421430,500.0,0.00044122,30]
[340964771,1730169421712,507.38556988,0.00044122,30]
[340964772,1730169421740,500.0,0.00044122,30]
[340964773,1730169422036,500.0,0.00044122,30]
[340964774,1730169422332,500.0,0.00044122,30]
[340964775,1730169422619,642.77519921,0.00044122,30]
[340964776,1730169425339,1043.18818333,0.00044122,30]
[340964777,1730169425422,503.19553962,0.00044122,30]
[340964778,1730169427896,500.0,0.00044122,30]
[340964779,1730169428223,500.0,0.00044122,30]
[340964780,1730169428508,386.4917827,0.00044122,30]
[340964781,1730169429857,510.53449991,0.00044122,30]
[340964782,1730169431031,500.0,0.00044122,30]
[340964783,1730169431314,166.48457371,0.00044122,30]
[340964784,1730169432958,516.5366386,0.00044122,30]
[340964785,1730169436496,515.71960241,0.00044122,30]
[340964786,1730169439538,526.56331916,0.00044122,30]
[340964787,1730169439569,534.35055277,0.00044122,30]
[340964788,1730169444007,506.78243473,0.00044122,30]
[340964789,1730169444888,547.45016845,0.00044122,30]
[340964790,1730169450274,159.50398373,0.00044122,30]
[340964791,1730169450530,500.0,0.00044122,30]
[340964792,1730169450861,618.80558518,0.00044122,30]
[340964793,1730169452982,500.0,0.00044122,30]
[340964794,1730169453916,307.24579531,0.00044122,30]
[340964795,1730169454552,540.97866272,0.00044122,30]
[340964796,1730169455982,506.45921432,0.00044122,30]
[340964797,1730169458207,512.65658884,0.00044122,30]
[340964798,1730169458991,524.43952641,0.00044122,30]
[340964799,1730169461157,578.1337089,0.00044122,30]
[340964800,1730169463742,500.0,0.00044122,30]
[340964801,1730169464020,223.04,0.00044122,30]
[340964802,1730169466091,539.13769538,0.00044122,30]
[340964803,1730169466552,508.04519637,0.00044122,30]
[340964804,1730169469512,555.57732805,0.00043883,30]
[340964805,1730169470564,507.93393557,0.00043883,30]
[340964806,1730169471829,520.21572062,0.00043883,30]
[340964807,1730169472668,512.50455455,0.00043883,30]
[340964808,1730169474306,546.24308568,0.00043883,30]
[340964809,1730169475776,500.0,0.00043883,30]
[340964810,1730169478660,542.59441368,0.00043883,30]
[340964811,1730169481365,611.03,0.00043883,30]
[340964812,1730169483535,501.00214306,0.00043883,30]
[340964813,1730169486654,507.17750823,0.00043883,30]
[340964814,1730169486893,523.55787284,0.00043883,30]
[340964815,1730169488233,500.0,0.00043883,30]
[340964816,1730169488505,500.0,0.00043883,30]
[340964817,1730169488788,500.0,0.00043883,30]
[340964818,1730169489078,500.0,0.00043883,30]
[340964819,1730169489359,500.0,0.00043883,30]
[340964820,1730169489677,500.0,0.00043883,30]
[340964821,1730169489961,276.75087516,0.00043883,30]
[340964822,1730169492110,500.0,0.00043883,30]
[340964823,1730169492414,209.38057489,0.00043883,30]
[340964824,1730169495107,537.7945068,0.00043883,30]
[340964825,1730169495461,609.97,0.00043883,30]
[340964826,1730169500020,588.03929474,0.00043883,30]
[340964827,1730169501187,502.19287311,0.00043883,30]
[340964828,1730169509330,500.0,0.00043883,30]
[340964829,1730169511688,589.74670927,0.00043883,30]
[340964830,1730169518017,511.1631461,0.00043883,30]
[340964831,1730169520614,307.11439342,0.00043883,30]
[340964832,1730169524572,500.0,0.00043883,30]
[340964833,1730169524839,512.12819577,0.00043883,30]
[340964834,1730169527272,500.0,0.00043883,30]
[340964835,1730169530013,500.0,0.00043883,30]
[340964836,1730169531990,500.0,0.00043883,30]
[340964837,1730169532267,500.0,0.00043883,30]
[340964838,1730169532722,500.0,0.00043883,30]
[340964839,1730169532808,500.0,0.00043883,30]
[340964840,1730169533121,500.0,0.00043883,30]
[340964841,1730169533439,500.0,0.00043883,30]
[340964842,1730169533767,500.0,0.00043883,30]
[340964843,1730169534042,500.0,0.00043883,30]
[340964844,1730169534325,500.0,0.00043883,30]
[340964845,1730169534935,500.0,0.00043883,30]
[340964846,1730169535221,500.0,0.00043883,30]
[340964847,1730169535543,500.0,0.00043883,30]
[340964848,1730169535813,500.0,0.00043883,30]
[340964849,1730169536132,500.0,0.00043883,30]
[340964850,1730169536456,241.35,0.00043883,30]
[340964851,1730169539026,500.0,0.00043883,30]
[340964852,1730169539311,500.0,0.00043883,30]
[340964853,1730169541932,500.0,0.00043883,30]
[340964854,1730169549905,500.0,0.00043883,30]
[340964855,1730169551566,510.58273845,0.00043883,30]
[340964856,1730169554031,617.45927719,0.00043883,30]
[340964857,1730169557150,550.27294881,0.00043883,30]
[340964858,1730169559983,570.88965298,0.00043883,30]
[340964859,1730169562662,528.00511457,0.00043883,30]
[340964860,1730169566352,509.16210345,0.00043883,30]
[340964861,1730169569842,510.85922375,0.00043883,30]
[340964862,1730169573150,517.26788497,0.00043883,30]
[340964863,1730169581711,500.0,0.00043883,30]
[340964864,1730169582015,228.66888826,0.00043883,30]
[340964866,1730169592214,500.0,0.00043883,30]
[340964867,1730169592489,500.0,0.00043883,30]
[340964868,1730169592793,500.0,0.00043883,30]
[340964869,1730169592869,526.11981712,0.00043883,30]
[340964870,1730169593682,500.0,0.00043883,30]
[340964871,1730169593711,510.61036648,0.00043883,30]
[340964872,1730169593773,545.71135569,0.00043883,30]
[340964873,1730169598651,515.80923941,0.00043883,30]
[340964874,1730169603018,500.0,0.00043883,30]
[340964875,1730169603313,500.0,0.00043883,30]
[340964876,1730169603677,458.95459321,0.00043883,30]
[340964877,1730169603999,518.59699885,0.00043883,30]
[340964878,1730169604294,610.82299257,0.00043883,30]
[340964879,1730169604950,500.0,0.00043883,30]
[340964880,1730169606086,500.0,0.00043883,30]
[340964881,1730169606301,512.46207624,0.00043883,30]
[340964882,1730169606364,500.0,0.00043883,30]
[340964883,1730169606963,515.49222665,0.00043883,30]
[340964884,1730169606992,500.0,0.00043883,30]
[340964885,1730169607264,500.0,0.00043883,30]
[340964886,1730169607672,338.38,0.00043883,30]
[340964887,1730169608355,500.0,0.00043883,30]
[340964888,1730169608758,156.7936556,0.00043883,30]
[340964889,1730169609444,576.64,0.00043883,30]
[340964890,1730169609971,503.80098811,0.00043883,30]
[340964891,1730169612374,500.0,0.00043883,30]
[340964892,1730169614250,544.21201855,0.00043883,30]
[340964893,1730169614363,544.81754805,0.00043883,30]
[340964894,1730169616977,544.57887521,0.00043883,30]
[340964895,1730169618118,500.0,0.00043883,30]
[340964896,1730169618360,519.58564093,0.00043883,30]
[340964897,1730169618390,500.0,0.00043883,30]
[340964898,1730169618688,500.0,0.00043883,30]
[340964899,1730169618970,500.0,0.00043883,30]
[340964900,1730169619263,500.0,0.00043883,30]
[340964901,1730169619549,500.0,0.00043883,30]
[340964902,1730169619650,543.53842619,0.00043883,30]
[340964903,1730169619837,500.0,0.00043883,30]
[340964904,1730169620859,500.00243261,0.00043883,30]
[340964905,1730169621394,521.91637735,0.00043883,30]
[340964906,1730169622254,510.14433199,0.00043883,30]
[340964907,1730169624054,519.45418307,0.00043883,30]
[340964908,1730169624222,536.39404116,0.00043883,30]
[340964909,1730169626240,523.85875279,0.00043883,30]
[340964910,1730169627470,536.33622103,0.00043883,30]
[340964911,1730169627498,500.0,0.00043883,30]
[340964912,1730169627556,500.0,0.00043883,30]
[340964913,1730169627831,500.0,0.00043883,30]
[340964914,1730169628089,500.0,0.00043883,30]
[340964915,1730169628390,500.0,0.00043883,30]
[340964916,1730169629002,500.0,0.00043883,30]
[340964917,1730169629401,500.0,0.00043883,30]
[340964918,1730169629432,602.49568559,0.00043883,30]
[340964919,1730169629613,500.0,0.00043883,30]
[340964920,1730169629960,500.0,0.00043883,30]
[340964921,1730169630250,500.0,0.00043883,30]
[340964922,1730169630347,533.4460886,0.00043883,30]
[340964923,1730169630544,236.41,0.00043883,30]
[340964924,1730169631228,505.38752065,0.00043883,30]
[340964925,1730169631394,551.08106085,0.00043883,30]
[340964926,1730169631424,527.21292183,0.00043883,30]
[340964927,1730169632799,599.28941648,0.00043883,30]
[340964928,1730169632964,500.0,0.00043883,30]
[340964929,1730169633360,500.0,0.00043883,30]
[340964930,1730169633647,500.0,0.00043883,30]
[340964931,1730169633707,551.1311474,0.00043883,30]
[340964932,1730169633884,507.12416201,0.00043883,30]
[340964933,1730169633998,534.27407837,0.00043883,30]
[340964934,1730169634028,500.0,0.00043883,30]
[340964935,1730169634202,500.0,0.00043883,30]
[340964936,1730169634497,500.0,0.00043883,30]
[340964937,1730169634788,500.0,0.00043883,30]
[340964938,1730169635085,500.0,0.00043883,30]
[340964939,1730169635387,414.68009604,0.00043883,30]
[340964940,1730169636163,542.62162324,0.00043883,30]
[340964941,1730169636202,512.42802594,0.00043883,30]
[340964942,1730169636952,500.0,0.00043883,30]
[340964943,1730169637142,500.0,0.00043883,30]
[340964944,1730169637437,573.03530794,0.00043883,30]
[340964945,1730169637940,543.84495525,0.00043883,30]
[340964946,1730169638844,500.0,0.00043883,30]
[340964947,1730169639118,500.0,0.00043883,30]
[340964948,1730169639405,500.0,0.00043883,30]
[340964949,1730169639676,500.0,0.00043883,30]
[340964950,1730169640298,500.0,0.00043883,30]
[340964951,1730169640578,500.0,0.00043883,30]
[340964952,1730169640848,500.0,0.00043883,30]
[340964953,1730169641075,500.0,0.00043883,30]
[340964954,1730169641184,500.0,0.00043883,30]
[340964955,1730169641214,188.01095242,0.00043883,30]
[340964956,1730169641762,500.0,0.00043883,30]
[340964957,1730169642042,500.0,0.00043883,30]
[340964958,1730169642359,500.0,0.00043883,30]
[340964959,1730169642636,416.75861456,0.00043883,30]
[340964960,1730169644513,511.69688308,0.00043883,30]
[340964961,1730169647340,515.25249461,0.00043883,30]
[340964962,1730169648144,500.0,0.00043883,30]
[340964963,1730169648361,580.95502579,0.00043883,30]
[340964964,1730169648433,189.39124919,0.00043883,30]
[340964965,1730169648818,500.0,0.00043883,30]
[340964966,1730169649073,500.0,0.00043883,30]
[340964967,1730169649361,500.0,0.00043883,30]
[340964968,1730169649631,500.0,0.00043883,30]
[340964969,1730169649828,514.53498006,0.00043883,30]
[340964970,1730169650246,500.0,0.00043883,30]
[340964971,1730169650565,320.7,0.00043883,30]
[340964972,1730169651019,600.53553994,0.00043883,30]
[340964973,1730169651369,601.63806246,0.00043883,30]
[340964974,1730169651459,503.33268244,0.00043883,30]
[340964975,1730169652277,500.0,0.00043883,30]
[340964976,1730169652567,500.0,0.00043883,30]
[340964977,1730169652848,500.0,0.00043883,30]
[340964978,1730169652933,507.36853042,0.00043883,30]
[340964979,1730169653128,500.0,0.00043883,30]
[340964980,1730169653158,500.0,0.00043883,30]
[340964981,1730169653447,560.36,0.00043883,30]
[340964982,1730169653781,472.14344306,0.00043883,30]
[340964983,1730169655299,514.59021824,0.00043883,30]
[340964984,1730169656385,597.74905027,0.00043883,30]
[340964985,1730169658153,507.95203414,0.00043883,30]
[340964986,1730169660591,500.0,0.00043883,30]
[340964987,1730169660871,514.65716239,0.00043883,30]
[340964988,1730169661100,500.0,0.00043883,30]
[340964989,1730169661183,500.0,0.00043883,30]
[340964990,1730169661386,500.0,0.00043883,30]
[340964991,1730169661584,500.0,0.00043883,30]
[340964992,1730169661704,500.0,0.00043883,30]
[340964993,1730169661739,500.0,0.00043883,30]
[340964994,1730169661995,500.0,0.00043883,30]
[340964995,1730169662030,500.0,0.00043883,30]
[340964996,1730169662338,500.0,0.00043883,30]
[340964997,1730169662535,539.74260729,0.00043883,30]
[340964998,1730169662596,500.0,0.00043883,30]
[340964999,1730169662871,500.0,0.00043883,30]
[340965000,1730169663168,500.0,0.00043883,30]
[340965001,1730169663797,500.0,0.00043883,30]
[340965002,1730169663910,509.883381,0.00043883,30]
[340965003,1730169664093,500.0,0.00043883,30]
[340965004,1730169664460,500.0,0.00043883,30]
[340965005,1730169664664,500.0,0.00043883,30]
[340965006,1730169664953,500.0,0.00043883,30]
[340965007,1730169665043,509.37441737,0.00043883,30]
[340965008,1730169665252,500.0,0.00043883,30]
[340965009,1730169665558,262.64,0.00043883,30]
[340965010,1730169667454,500.0,0.00043883,30]
[340965011,1730169668055,635.00387245,0.00043883,30]
[340965012,1730169668848,500.0,0.00043883,30]
[340965013,1730169669150,500.0,0.00043883,30]
[340965014,1730169669262,515.79601878,0.00043883,30]
[340965015,1730169669410,503.74801853,0.00043883,30]
[340965016,1730169669450,500.0,0.00043883,30]
[340965017,1730169669742,500.0,0.00043883,30]
[340965018,1730169669933,500.0,0.00043883,30]
[340965019,1730169670042,500.0,0.00043883,30]
[340965020,1730169670131,500.0,0.00043883,30]
[340965021,1730169670324,500.0,0.00043883,30]
[340965022,1730169670423,500.0,0.00043883,30]
[340965023,1730169670516,513.39884545,0.00043883,30]
[340965024,1730169670580,500.0,0.00043883,30]
[340965025,1730169670700,500.0,0.00043883,30]
[340965026,1730169671032,500.0,0.00043883,30]
[340965027,1730169671061,566.16323927,0.00043883,30]
[340965028,1730169671534,528.78520241,0.00043883,30]
[340965029,1730169671674,500.0,0.00043883,30]
[340965030,1730169671925,501.60656411,0.00043883,30]
[340965031,1730169671955,500.0,0.00043883,30]
[340965032,1730169672278,500.0,0.00043883,30]
[340965033,1730169672568,500.0,0.00043883,30]
[340965034,1730169672940,500.0,0.00043883,30]
[340965035,1730169672968,509.23354932,0.00043883,30]
[340965036,1730169673275,500.0,0.00043883,30]
[340965037,1730169673601,500.0,0.00043883,30]
[340965038,1730169673889,500.0,0.00043883,30]
[340965039,1730169674547,500.0,0.00043883,30]
[340965040,1730169674781,500.0,0.00043883,30]
[340965041,1730169675058,500.0,0.00043883,30]
[340965042,1730169675354,500.0,0.00043883,30]
[340965043,1730169675384,500.0,0.00043883,30]
[340965044,1730169675668,500.0,0.00043883,30]
[340965045,1730169675949,500.0,0.00043883,30]
[340965046,1730169676245,500.0,0.00043883,30]
[340965047,1730169676505,500.0,0.00043883,30]
[340965048,1730169676549,500.0,0.00043883,30]
[340965049,1730169676589,500.0,0.00043883,30]
[340965050,1730169676823,500.0,0.00043883,30]
[340965051,1730169677117,500.0,0.00043883,30]
[340965052,1730169677399,408.55982117,0.00043883,30]
[340965053,1730169678455,524.00687,0.00043883,30]
[340965054,1730169679379,500.0,0.00043883,30]
[340965055,1730169679654,500.0,0.00043883,30]
[340965056,1730169679950,500.0,0.00043883,30]
[340965057,1730169680039,502.95623128,0.00043883,30]
[340965058,1730169680270,500.0,0.00043883,30]
[340965059,1730169680494,500.0,0.00043883,30]
[340965060,1730169680539,500.0,0.00043883,30]
[340965061,1730169680700,500.0,0.00043883,30]
[340965062,1730169680809,500.0,0.00043883,30]
[340965063,1730169680857,500.0,0.00043883,30]
[340965064,1730169681114,500.0,0.00043883,30]
[340965065,1730169681144,500.0,0.00043883,30]
[340965066,1730169681404,500.0,0.00043883,30]
[340965067,1730169681448,500.0,0.00043883,30]
[340965068,1730169681680,500.0,0.00043883,30]
[340965069,1730169681717,422.72,0.00043883,30]
[340965070,1730169681971,500.0,0.00043883,30]
[340965071,1730169682413,500.0,0.00043883,30]
[340965072,1730169682568,500.0,0.00043883,30]
[340965073,1730169682923,500.0,0.00043883,30]
[340965074,1730169683196,500.0,0.00043883,30]
[340965075,1730169683822,500.0,0.00043883,30]
[340965076,1730169684094,500.0,0.00043883,30]
[340965077,1730169684756,500.0,0.00043883,30]
[340965078,1730169684994,500.0,0.00043883,30]
[340965079,1730169685230,500.0,0.00043883,30]
[340965080,1730169685292,500.0,0.00043883,30]
[340965081,1730169685583,500.0,0.00043883,30]
[340965082,1730169685877,576.38643758,0.00043883,30]
[340965083,1730169686575,500.0,0.00043883,30]
[340965084,1730169686869,500.0,0.00043883,30]
[340965085,1730169686900,500.0,0.00043883,30]
[340965086,1730169687207,500.0,0.00043883,30]
[340965087,1730169687237,362.04418376,0.00043883,30]
[340965088,1730169687741,500.0,0.00043883,30]
[340965089,1730169688039,500.0,0.00043883,30]
[340965090,1730169688245,500.0,0.00043883,30]
[340965091,1730169688295,502.5216341,0.00043883,30]
[340965092,1730169688333,500.0,0.00043883,30]
[340965093,1730169688560,500.0,0.00043883,30]
[340965094,1730169688655,500.0,0.00043883,30]
[340965095,1730169688828,500.0,0.00043883,30]
[340965096,1730169688943,500.0,0.00043883,30]
[340965097,1730169688972,500.0,0.00043883,30]
[340965098,1730169689461,150.23434625,0.00043883,30]
[340965099,1730169691841,521.31399519,0.00043883,30]
[340965100,1730169694119,504.39077131,0.00043883,30]
[340965101,1730169694343,500.66485536,0.00043883,30]
[340965102,1730169694493,504.95900859,0.00043883,30]
[340965103,1730169695232,500.0,0.00043883,30]
[340965104,1730169695533,256.65036503,0.00043883,30]
[340965105,1730169699415,525.94660771,0.00043883,30]
[340965106,1730169699882,500.0,0.00043883,30]
[340965107,1730169699995,515.95071727,0.00043883,30]
[340965108,1730169701581,500.0,0.00043883,30]
[340965109,1730169701883,510.15645544,0.00043883,30]
[340965110,1730169701915,452.93304393,0.00043883,30]
[340965111,1730169703024,545.64466358,0.00043883,30]
[340965112,1730169704053,529.35748566,0.00043883,30]
[340965113,1730169704199,500.0,0.00043883,30]
[340965114,1730169704476,500.0,0.00043883,30]
[340965115,1730169704801,500.0,0.00043883,30]
[340965116,1730169705447,500.0,0.00043883,30]
[340965117,1730169705570,547.84822861,0.00043883,30]
[340965118,1730169705688,500.0,0.00043883,30]
[340965119,1730169705978,500.0,0.00043883,30]
[340965120,1730169706277,500.0,0.00043883,30]
[340965121,1730169706548,637.76,0.00043883,30]
[340965122,1730169707981,500.0,0.00043883,30]
[340965123,1730169708145,638.75435066,0.00043883,30]
[340965124,1730169709356,500.0,0.00043883,30]
[340965125,1730169709643,500.0,0.00043883,30]
[340965126,1730169709969,501.88322236,0.00043883,30]
[340965127,1730169710283,539.05301548,0.00043883,30]
[340965128,1730169710369,545.58230102,0.00043883,30]
[340965129,1730169711309,541.26207722,0.00043883,30]
[340965130,1730169712619,497.44075936,0.00043883,30]
[340965131,1730169712884,470.70117751,0.00043883,30]
[340965132,1730169713837,500.0,0.00043883,30]
[340965133,1730169715102,640.66198961,0.00043883,30]
[340965134,1730169716459,150.0,0.00043883,120]
[340965135,1730169717399,541.33518435,0.00043883,30]
[340965136,1730169717980,500.0,0.00043883,30]
[340965137,1730169718284,621.08100488,0.00043883,30]
[340965138,1730169719107,295.7,0.00043883,30]
[340965140,1730169720316,500.0,0.00043883,30]
[340965141,1730169720635,267.31317706,0.00043883,30]
[340965142,1730169721228,501.18851795,0.00043883,30]
[340965143,1730169722880,590.66471963,0.00043883,30]
[340965144,1730169723216,547.530064,0.00043883,30]
[340965145,1730169724030,500.0,0.00043883,30]
[340965146,1730169724890,586.98351815,0.00043883,30]
[340965147,1730169726803,501.787728,0.00043883,30]
[340965148,1730169727483,584.70985063,0.00043883,30]
[340965149,1730169727741,500.0,0.00043883,30]
[340965150,1730169728283,500.0,0.00043883,30]
[340965151,1730169728621,500.0,0.00043883,30]
[340965152,1730169728927,500.0,0.00043883,30]
[340965153,1730169729214,500.0,0.00043883,30]
[340965154,1730169729320,500.0,0.00043883,30]
[340965155,1730169729522,500.0,0.00043883,30]
[340965156,1730169729591,500.0,0.00043883,30]
[340965157,1730169729871,305.16521829,0.00043883,30]
[340965158,1730169729929,500.0,0.00043883,30]
[340965159,1730169730047,535.23212108,0.00043883,30]
[340965160,1730169730146,502.94101179,0.00043883,30]
[340965161,1730169730240,591.13383959,0.00043883,30]
[340965162,1730169730348,518.73879062,0.00043883,30]
[340965163,1730169732637,500.0,0.00043883,30]
[340965164,1730169732704,500.0,0.00043883,30]
[340965165,1730169733007,647.75583782,0.00043883,30]
[340965166,1730169733206,529.24478101,0.00043883,30]
[340965167,1730169733437,500.56072741,0.00043883,30]
[340965168,1730169733587,1041.26,0.00014948,2]
[340965169,1730169735630,517.57998584,0.00043883,30]
[340965170,1730169735662,500.0,0.00043883,30]
[340965171,1730169735939,500.0,0.00043883,30]
[340965172,1730169735968,510.0865682,0.00043883,30]
[340965173,1730169736108,511.16459724,0.00043883,30]
[340965174,1730169736200,219.85,0.00043883,30]
[340965175,1730169737358,500.0,0.00043883,30]
[340965176,1730169737643,156.82843158,0.00043883,30]
[340965177,1730169738537,543.71249542,0.00043883,30]
[340965178,1730169738697,500.0,0.00043883,30]
[340965179,1730169738919,526.61567741,0.00043883,30]
[340965180,1730169740641,510.61731815,0.00043883,30]
[340965181,1730169741072,563.25,0.00043883,30]
[340965182,1730169741521,537.08052349,0.00043883,30]
[340965183,1730169742143,508.79725132,0.00043883,30]
[340965184,1730169743048,531.52488834,0.00043883,30]
[340965185,1730169743559,509.48662432,0.00043883,30]
[340965186,1730169744581,500.0,0.00043883,30]
[340965187,1730169745176,589.2854287,0.00043883,30]
[340965188,1730169745438,539.42620983,0.00043883,30]
[340965189,1730169745876,505.25370363,0.00043883,30]
[340965190,1730169746986,554.39269273,0.00043883,30]
[340965191,1730169747704,501.71578628,0.00043883,30]
[340965192,1730169748008,500.0,0.00043883,30]
[340965193,1730169748215,507.37543055,0.00043883,30]
[340965194,1730169749890,519.8788746,0.00043883,30]
[340965195,1730169750241,596.63009258,0.00043883,30]
[340965196,1730169752722,516.69163727,0.00043883,30]
[340965197,1730169754180,500.0,0.00043883,30]
[340965198,1730169754245,511.61491579,0.00043883,30]
[340965199,1730169754472,500.0,0.00043883,30]
[340965200,1730169754767,500.0,0.00043883,30]
[340965201,1730169755075,500.0,0.00043883,30]
[340965202,1730169755107,508.79048271,0.00043883,30]
[340965203,1730169755690,500.0,0.00043883,30]
[340965204,1730169755785,500.0,0.00043883,30]
[340965205,1730169755958,500.0,0.00043883,30]
[340965206,1730169756232,500.0,0.00043883,30]
[340965207,1730169756703,500.0,0.00043883,30]
[340965208,1730169756866,500.0,0.00043883,30]
[340965209,1730169757560,500.0,0.00043883,30]
[340965210,1730169757767,500.0,0.00043883,30]
[340965211,1730169757858,508.87013266,0.00043883,30]
[340965212,1730169758044,500.0,0.00043883,30]
[340965213,1730169758329,500.0,0.00043883,30]
[340965214,1730169758620,500.0,0.00043883,30]
[340965215,1730169758898,500.0,0.00043883,30]
[340965216,1730169759027,519.78692918,0.00043883,30]
[340965217,1730169759171,573.04,0.00043883,30]
[340965218,1730169761907,500.0,0.00043883,30]
[340965219,1730169761947,516.54375104,0.00043883,30]
[340965220,1730169762107,553.39984466,0.00043883,30]
[340965221,1730169763138,500.0,0.00043883,30]
[340965222,1730169764740,530.69624411,0.00043883,30]
[340965223,1730169765966,509.78170905,0.00043883,30]
[340965224,1730169768861,500.0,0.00043883,30]
[340965225,1730169768912,515.19492658,0.00043883,30]
[340965226,1730169771319,500.0,0.00043884,30]
[340965227,1730169771349,581.2817845,0.00043884,30]
[340965228,1730169771511,519.40884636,0.00043884,30]
[340965229,1730169776201,510.76535665,0.00043884,30]
[340965230,1730169776634,500.0,0.00043884,30]
[340965231,1730169776911,500.0,0.00043884,30]
[340965232,1730169777039,531.898389,0.00043884,30]
[340965233,1730169777195,500.0,0.00043884,30]
[340965234,1730169777459,500.0,0.00043884,30]
[340965235,1730169777827,500.0,0.00043884,30]
[340965236,1730169778035,500.0,0.00043884,30]
[340965237,1730169778320,500.0,0.00043884,30]
[340965238,1730169779234,542.2599665,0.00043884,30]
[340965239,1730169779714,512.32789275,0.00043884,30]
[340965240,1730169781567,514.31821527,0.00043884,30]
[340965241,1730169781633,500.0,0.00043884,30]
[340965242,1730169782305,534.79968523,0.00043884,30]
[340965243,1730169783808,532.84583182,0.00043884,30]
[340965244,1730169787259,562.19234221,0.00043884,30]
[340965245,1730169789877,511.34702076,0.00043884,30]
[340965246,1730169792558,508.42722987,0.00043884,30]
[340965247,1730169795077,539.29687992,0.00043884,30]
[340965248,1730169798401,596.29200222,0.00043884,30]
[340965249,1730169798697,500.0,0.00043884,30]
[340965250,1730169798981,521.30380702,0.00043884,30]
[340965251,1730169799332,500.0,0.00043884,30]
[340965252,1730169799603,500.0,0.00043884,30]
[340965253,1730169799882,500.0,0.00043884,30]
[340965254,1730169800162,500.0,0.00043884,30]
[340965255,1730169800451,500.0,0.00043884,30]